Cogmind - Beta 13 @@@ ROGUE MODE // 2024.03.10 @ 19:03:40 Player: Minty Result: Destroyed by D-53 Grenadier with Mini Grenade Launcher Performance ------------- Evolutions (1) 500 Regions Visited (4) 800 Robots Destroyed (36) 180 Value Destroyed (801) 801 Prototype IDs (4) 80 Alien Tech Used (0) 0 Bonus (68) 68 TOTAL SCORE: 2429 Bonus ------- Follower Combat Kills 93 Friendly Fire -25 Cogmind --------- Core Integrity 0/400 Matter 270/300 Energy 40/100 System Corruption 0% Temperature Cool (0) Movement Core (50) Location -9/Mines Parts ------- > --- POWER (1) -------- (None) > --- PROPULSION (2) --- (None) > --- UTILITY (3) ------ (None) > --- WEAPON (3) ------- (None) > --- INVENTORY (5) ---- Aluminum Leg Disposable Heat Sink Rocket Launcher Maul EMP Trap Peak State ------------ > --- POWER ------------ Light Nuclear Core > --- PROPULSION ------- Aluminum Leg Aluminum Leg > --- UTILITY ---------- Heat Sink Small Storage Unit Light Armor Plating > --- WEAPON ----------- EM Shotgun Beam Rifle Maul > --- INVENTORY -------- Light Ion Engine Wheel Wheel Disposable Heat Sink Heavy EM Pulse Gun Assault Rifle Light Assault Rifle Rocket Launcher [Rating: 15] Favorites ----------- Power Ion Engine Engine Ion Engine Power Core Light Nuclear Core Propulsion Aluminum Leg Leg Aluminum Leg Wheel Wheel Utility Small Storage Unit Device Heat Sink Storage Small Storage Unit Processor Targeting Computer Protection Light Armor Plating Weapon Medium Laser Energy Gun Medium Laser Energy Cannon Advanced Beam Cannon Ballistic Gun Assault Rifle Launcher Rocket Launcher Impact Weapon Maul Build | -11 -10 -10 -9 -9 ------- Run | Yrd Mat Min Mat Min Slots Evolved 2 | . . . 2 . Power . | . . . . . Propulsion . | . . . . . Utility 1 | . . . 1 . Weapon 1 | . . . 1 . Parts Attached 35 | . 3 . 26 6 Power 3 | . . . 3 . Engine 2 | . . . 2 . Core 1 | . . . 1 . Reactor . | . . . . . Propulsion 7 | . . . 4 3 Treads . | . . . . . Leg 4 | . . . 4 . Wheel 3 | . . . . 3 Hover . | . . . . . Flight . | . . . . . Utility 7 | . 1 . 6 . Device 4 | . 1 . 3 . Storage . | . . . . . Processor 2 | . . . 2 . Hackware . | . . . . . Protection 1 | . . . 1 . Artifact . | . . . . . Weapon 18 | . 2 . 13 3 Energy Gun 10 | . 2 . 8 . Energy Cannon 2 | . . . 2 . Ballistic Gun 3 | . . . 2 1 Ballistic Cannon . | . . . . . Launcher 2 | . . . . 2 Special Weapon . | . . . . . Impact Weapon 1 | . . . 1 . Slashing Weapon . | . . . . . Piercing Weapon . | . . . . . Special Melee Weapon . | . . . . . Unidentified Prototypes 2 | . . . 2 . Parts Lost 15 | . . . 7 8 Power 3 | . . . 2 1 Propulsion 4 | . . . 2 2 Utility 3 | . . . 1 2 Weapon 5 | . . . 2 3 Highest Loss Streak 8 | . . . 3 8 To Critical Strikes . | . . . . . Average Slot Usage (%) 94 | . 97 100 96 83 Engine 10 | . 14 14 9 10 Leg 18 | . 28 28 21 . Wheel 4 | . . . . 21 Device 11 | . 12 14 11 10 Storage 11 | . 14 14 11 10 Processor 3 | . . . 6 . Protection 1 | . . . 3 . Energy Gun 19 | . 25 28 23 . Energy Cannon 5 | . . . 2 21 Impact Weapon 4 | . . . 4 10 Naked Turns 3 | . . . . 3 Heaviest Build 23 | 13 15 15 23 23 Greatest Support 20 | 20 20 20 20 20 Greatest Overweight (x) 2 | . . . 2 2 Average Overweight (x) . | . . . . . Largest Inventory Capacity 8 | . 8 8 8 8 Average Capacity 7 | . 8 8 8 7 Most Carried 8 | . 8 8 8 8 Average Carried 7 | . 7 8 7 7 Final Capacity 8 | 8 8 8 8 5 Final Carried 8 | 6 8 8 6 5 Class Distribution -------------------- 62% | Mutant 17% | Gunner 9% | Scavenger-Mutant 9% | Tank Dominant Class ---------------- Mutant | -10/Materials Mutant | -10/Mines Gunner | -9/Materials Mutant | -9/Mines Resources | -11 -10 -10 -9 -9 ----------- Run | Yrd Mat Min Mat Min Matter Collected 490 | 200 19 11 239 21 Remotely . | . . . . . Salvage Created 1390 | . 124 44 1057 165 Parts 44 | . 1 3 36 4 Haulers Intercepted 1 | . . . 1 . Recyclers Shooed 4 | . 1 1 2 . Parts Field Recycled . | . . . . . Retrieved Matter . | . . . . . Parts Self-Destructed . | . . . . . Prevented . | . . . . . Kills | -11 -10 -10 -9 -9 ------- Run | Yrd Mat Min Mat Min Combat Hostiles Destroyed 29 | . . 1 16 12 Melee 3 | . . . 2 1 Guns 7 | . . 1 6 . Cannons 9 | . . . 5 4 AOE 7 | . . . . 7 Classes Destroyed 11 | . 2 1 6 2 Worker 5 | . . . 3 2 Builder 1 | . . . 1 . Tunneler 3 | . . . 1 2 Hauler 1 | . . . 1 . Recycler 3 | . 1 . 2 . Watcher 3 | . 2 . 1 . Swarmer 3 | . . . . 3 Grunt 11 | . . 1 10 . Duelist 1 | . . . 1 . Sentry 5 | . . . 5 . Assembled 9 | . . . . 9 Best Kill Streak 9 | . 1 1 9 9 Combat Bots Only 9 | . . 1 5 9 Max Kills in Single Turn 4 | . 1 1 1 4 Gunslinging . | . . . . . Exploded 4 | . . . . 4 Melee 1 | . . . 1 1 Uniques/NPCs Destroyed . | . . . . . Combat | -11 -10 -10 -9 -9 -------- Run | Yrd Mat Min Mat Min Hostile Shots Fired 173 | . . 4 119 50 Missed 45 | . . 2 30 13 Damage Taken 1988 | . . 25 1121 842 Core 406 | . . . 184 222 Absorbed by Shields . | . . . . . Regen/Repaired (Parts) 69 | . . . 69 . Core Remaining (%) 100 | 100 . 100 . . Volleys Fired 61 | . 11 6 35 9 Largest 3 | . 2 2 3 3 Hottest 169 | . 100 100 146 169 Shots Fired 130 | . 22 12 76 20 Gun 93 | . 22 12 56 3 Cannon 35 | . . . 20 15 Launcher 2 | . . . . 2 Special . | . . . . . Kinetic 3 | . . . . 3 Thermal 96 | . 22 12 47 15 Explosive 2 | . . . . 2 Electromagnetic 29 | . . . 29 . Robot Hit Streak 8 | . 5 6 8 6 Robot Miss Streak 4 | . 4 1 4 4 Penetration Max . | . . . . . Secondary Targets . | . . . . . Shots Hit Robots 102 | . 12 8 67 15 Core Hits 46 | . 3 5 25 13 Critical Kills 1 | . . . . 1 Critical Parts Destroyed 9 | . . . 8 1 Critical Strikes 16 | . 2 1 11 2 Burn 6 | . 2 1 3 . Smash 10 | . . . 8 2 Melee Attacks 25 | . . . 19 6 Impact 25 | . . . 19 6 Slashing . | . . . . . Piercing . | . . . . . Sneak Attacks 10 | . . . 6 4 Combat Hostiles . | . . . . . Follow-up Attacks . | . . . . . Damage Inflicted 2908 | . 152 115 1591 1050 Guns 801 | . 152 99 532 18 Cannons 430 | . . . 266 164 Explosions 471 | . . . . 471 Melee 1190 | . . . 793 397 Ramming 16 | . . 16 . . Kinetic 18 | . . . . 18 Thermal 907 | . 152 99 492 164 Explosive 471 | . . . . 471 Electromagnetic 306 | . . . 306 . Impact 1190 | . . . 793 397 Slashing . | . . . . . Piercing . | . . . . . Highest Corruption . | . . . . . Average Corruption . | . . . . . Corruption Purged . | . . . . . Corruption Blocked . | . . . . . Overload Shots . | . . . . . Overflow Damage 665 | . . . 453 212 Projectiles . | . . . . . Explosions 39 | . . . . 39 Melee 626 | . . . 453 173 Knockbacks 3 | . . . 1 2 Impact 3 | . . . 1 2 Kinetic . | . . . . . Secondary . | . . . . . Self-Inflicted Damage 78 | . . . . 78 Shots 2 | . . . . 2 Rammed . | . . . . . Targets Rammed 8 | . . 7 1 . Kicked 8 | . . 7 1 . Crushed . | . . . . . Highest Temperature 327 | . 156 171 327 188 Average Temperature 70 | . 63 73 76 59 Received Heat Transfer 674 | . . 15 579 80 Siege Activations . | . . . . . Robots Corrupted 2 | . . . 2 . Combat Hostiles . | . . . . . Parts Fried 15 | . . . 12 3 Impact Corruptions 25 | . . . 18 7 Robots Melted 1 | . 1 . . . Combat Hostiles . | . . . . . Parts Melted 6 | . 2 . 4 . Heat Transferred 2590 | . 592 370 1332 296 Parts Sabotaged . | . . . . . Parts Stolen . | . . . . . Parts Stripped . | . . . . . Power Chain Reactions . | . . . . . Alert | -11 -10 -10 -9 -9 ------- Run | Yrd Mat Min Mat Min Peak Influence 399 | . 49 86 399 271 Initial 151 | . . 18 33 151 Average 145 | . 22 30 163 251 Maximum Alert Level 1 | . . . 1 1 Low Security (%) 62 | . 100 100 65 11 Level 1 37 | . . . 34 88 Level 2 . | . . . . . Level 3 . | . . . . . Level 4 . | . . . . . Level 5 . | . . . . . High Security . | . . . . . Max Security . | . . . . . Squads Dispatched 3 | . . . 3 . Investigation 3 | . . . 3 . Extermination . | . . . . . Reinforcement . | . . . . . Assault . | . . . . . Garrison . | . . . . . Intercept . | . . . . . Searches Triggered . | . . . . . Construction Impeded . | . . . . . Haulers Reinforced . | . . . . . Active Scanning Responses . | . . . . . Cargo Convoy Interrupts . | . . . . . Stealth | -11 -10 -10 -9 -9 --------- Run | Yrd Mat Min Mat Min Distress Signals 3 | . . . 3 . Communications Jammed . | . . . . . Distress Signals . | . . . . . Times Spotted 58 | . 2 2 27 27 Peak Tracking Total 20 | . 1 2 5 20 Tactical Retreats 2 | . . . . 2 Traps | -11 -10 -10 -9 -9 ------- Run | Yrd Mat Min Mat Min Traps Triggered 1 | . . . 1 . Indirectly . | . . . . . Trap Hack Attempts . | . . . . . Triggered . | . . . . . Disarmed . | . . . . . Reprogrammed . | . . . . . Reused 2 | . . . . 2 Traps Extracted . | . . . . . Installed 3 | . . . . 3 Triggered . | . . . . . Most Traps Carried 3 | . . . . 3 Machines | -11 -10 -10 -9 -9 ---------- Run | Yrd Mat Min Mat Min Machines Disabled . | . . . . . Max in Single Turn . | . . . . . Machines Repaired . | . . . . . Machines Dismantled . | . . . . . Machines Sabotaged . | . . . . . Overloaded Fab Kills . | . . . . . Hacking | -11 -10 -10 -9 -9 --------- Run | Yrd Mat Min Mat Min Machines Accessed 5 | . . . 5 . Terminals 2 | . . . 2 . Fabricators . | . . . . . Repair Stations 2 | . . . 2 . Recycling Units 1 | . . . 1 . Scanalyzers . | . . . . . Garrison Access . | . . . . . Total Hacks 21 | . . . 21 . Successful 10 | . . . 10 . Failed 10 | . . . 10 . Catastrophic 1 | . . . 1 . Database Lockouts 1 | . . . 1 . Manual 5 | . . . 5 . Terminals 11 | . . . 11 . Fabricators . | . . . . . Repair Stations 7 | . . . 7 . Recycling Units 3 | . . . 3 . Scanalyzers . | . . . . . Garrison Access . | . . . . . Terminal Hacks 3 | . . . 3 . Prototype ID Bank 1 | . . . 1 . Branch Access Points 1 | . . . 1 . Maintenance Status 1 | . . . 1 . Fabricator Hacks . | . . . . . Repair Station Hacks 4 | . . . 4 . Scan Component 2 | . . . 2 . Repair 2 | . . . 2 . Recycling Unit Hacks 2 | . . . 2 . Report Inventory 1 | . . . 1 . Retrieve Components 1 | . . . 1 . Scanalyzer . | . . . . . Garrison Access Hacks . | . . . . . Unauthorized Hacks 1 | . . . 1 . Terminals 1 | . . . 1 . Botnet 1 | . . . 1 . Fabricators . | . . . . . Repair Stations . | . . . . . Recycling Units . | . . . . . Scanalyzers . | . . . . . Garrison Access . | . . . . . Data Cores Recovered . | . . . . . Used . | . . . . . Hacking Detections 4 | . . . 4 . Full Trace Events 2 | . . . 2 . Feedback Events . | . . . . . Feedback Blocked . | . . . . . Robot Schematics Acquired . | . . . . . Robots Built . | . . . . . Authchips . | . . . . . Time . | . . . . . Total Robot Build Rating . | . . . . . Part Schematics Acquired . | . . . . . Parts Built . | . . . . . Authchips . | . . . . . Time . | . . . . . Total Part Build Rating . | . . . . . Parts Repaired 2 | . . . 2 . Time 64 | . . . 64 . Parts Recycled . | . . . . . Recycled Matter . | . . . . . Retrieved Matter . | . . . . . Retrieved Components 7 | . . . 7 . Parts Scanalyzed . | . . . . . Part Schematics Acquired . | . . . . . Parts Damaged . | . . . . . Bothacking | -11 -10 -10 -9 -9 ------------ Run | Yrd Mat Min Mat Min Used RIF Installer . | . . . . . Robots Hacked . | . . . . . Non-combat . | . . . . . Combat . | . . . . . Robot Hacks Applied . | . . . . . Relay Couplers Released . | . . . . . Fabnet Peak Effective % . | . . . . . Robots Rewired . | . . . . . Allies Hacked . | . . . . . Hacks Repelled . | . . . . . Allies | -11 -10 -10 -9 -9 -------- Run | Yrd Mat Min Mat Min Total Allies 1 | . . 1 . . Largest Group 1 | . . 1 1 . Highest-Rated Group 31 | . . 31 31 . Highest-Rated Ally 31 | . . 31 31 . Total Orders . | . . . . . Ally Attacks 9 | . . 1 8 . Total Damage 146 | . . 22 124 . Kills 4 | . . 1 3 . Allies Corrupted . | . . . . . Allies Melted . | . . . . . Intel | -11 -10 -10 -9 -9 ------- Run | Yrd Mat Min Mat Min Robot Analysis Total . | . . . . . Derelict Logs Recovered 2 | . . . . 2 Drone Launches . | . . . . . Drone Recoveries . | . . . . . Exploration | -11 -10 -10 -9 -9 ------------- Run | Yrd Mat Min Mat Min Turns Passed 1560 | . 180 254 775 351 Spaces Moved 956 | 1 116 189 344 306 Core 10 | . . . . 10 Treads . | . . . . . Legs 651 | 1 116 189 344 1 Wheels 295 | . . . . 295 Hover . | . . . . . Flight . | . . . . . Fastest Speed 50 | 120 120 120 120 50 Average Speed 119 | 120 120 120 141 93 Slowest Speed 260 | 120 120 120 260 260 Overloaded Moves . | . . . . . Propulsion Burnouts . | . . . . . Robots Hopped . | . . . . . Cave-ins Triggered . | . . . . . Exploration Rate (%) 29 | 2 16 35 31 65 Regions Visited 4 Branch Regions 2 Pre-discovered Areas 1 | . . . . 1 Known Exits Taken 1 | . . . 1 . Unknown Exits Taken 3 | 1 1 1 . . Scrap Searched 1 | . . . . 1 Spaces Dug . | . . . . . Terrain Destroyed 17 | . . . . 17 Melee . | . . . . . Projectile . | . . . . . AOE 17 | . . . . 17 Terrain Rammed . | . . . . . Walls Destroyed . | . . . . . Machines Disabled . | . . . . . Actions | -11 -10 -10 -9 -9 --------- Run | Yrd Mat Min Mat Min Total 1203 | . 135 203 525 340 Wait 79 | . . . 79 . Move 952 | . 115 188 343 306 Hop . | . . . . . Pick Up 13 | . 2 1 6 4 Fast Attach 18 | . 3 . 14 1 Attach 4 | . . . 3 1 Detach 4 | . 2 . 1 1 Swap 13 | . . . 9 4 Drop 23 | . 2 1 15 5 Fire 61 | . 11 6 35 9 Melee 25 | . . . 19 6 Ram . | . . . . . Kick 8 | . . 7 1 . Crush . | . . . . . Escape Stasis . | . . . . . Rewire . | . . . . . Trap 3 | . . . . 3 Miscellaneous . | . . . . . Route ------- -11/Scrapyard -10/Materials -10/Mines -9/Materials (discovered 3 exits: *Min x2 / Sto) -9/Mines (discovered 1 exit: [*Mat]) History --------- Turn | Location | Event 1 | -11/Scrapyard | Discovered new exit (range 0) 1 | -11/Scrapyard | Entered Materials 44 | -10/Materials | Discovered new exit (range 14) 181 | -10/Materials | Entered Mines 205 | -10/Mines | Discovered new exit (range 7) 274 | -10/Mines | Received a Rocket Launcher from a helpful Derelict 301 | -10/Mines | Build established: Mutant 332 | -10/Mines | Received a Mining Laser from a helpful Derelict 435 | -10/Mines | Entered Materials 435 | -9/Materials | Accompanied by 1 ally 435 | -9/Materials | Evolved 2 slots: Utility x1, Weapon x1 648 | -9/Materials | Repaired EM Shotgun 843 | -9/Materials | Repaired Hvy. EM Pulse Gun 1076 | -9/Materials | Lost 3 parts (1p1u1w) 1083 | -9/Materials | Identified exit to Mines 1083 | -9/Materials | Identified exit to Storage 1083 | -9/Materials | Central database locked down 1180 | -9/Materials | Lost 3 parts (1p1n1w) 1210 | -9/Materials | Entered Mines 1269 | -9/Mines | Met a Derelict bent on vengeance 1291 | -9/Mines | Found a hidden stash of uninstalled traps 1376 | -9/Mines | Learned location of Storage (-9) 1481 | -9/Mines | Discovered new exit (range 11) 1508 | -9/Mines | Assembled infested the area 1514 | -9/Mines | Core integrity fell below 50% 1560 | -9/Mines | Core integrity fell below 20% 1561 | -9/Mines | Destroyed 9 combat bots 1561 | -9/Mines | Destroyed by D-53 Grenadier with Mini Grenade Launcher Last Messages --------------- 01540_ as-53971 destroyed. 01542_ as-25024 destroyed. 01543_ The unstable cave ceiling collapses. 01544_ as-36055 destroyed. 01544_ as-98585 destroyed. 01545_ Acquired 1 matter. 01546_ as-42113 destroyed. 01547_ as-07390 destroyed. 01547_ Destroyed Shock Absorption System. 01552_ K-01 Serf collects debris. 01553_ Wheel destroyed. 01553_ Core Extractor disabled. 01554_ Adv. Beam Cannon destroyed. 01556_ R-06 Scavenger collects Wheel. 01557_ The unstable cave ceiling collapses. 01558_ Hvy. Assault Rifle destroyed. 01559_ U-05 Engineer lays Concrete. 01559_ R-06 Scavenger destroyed. 01560_ U-05 Engineer lays Concrete. 01560_ D-53 Grenadier destroyed. Map ----- +----------------------------------------------------+ | #????????????????##########???????????????? | | ##??????????????## % #???????????????? | | ##?????????????# = #???????????????? | | #?????????????# # #???????????????? | | ##???????????## # #???????????????? | | #####??????## #???????????????? | | #??????# ## #???????????????? | | #### #?????## ## #???????????????? | | ###??# #?????# ## #???????????????? | | ?????#^#####?# ### #???????????????? | | ?????# #?# %## #?# #???????????????? | | ?????#### #?# ### ### #???????????????? | | ????????# ### ### #???????????????? | | ?????#### ## ###### #???????????????? | | ????## # # ##???# #???????????????? | | ??### ##??#% #### #??????????? | | ?## #??# #??????????? | | ## #??# %######??????????? | | # #??# ####?###????????? | | # #####u # ## ##???????? | | # ##?# #???????? | | # ### #####?## k #???????? | | # ##?#######?????# k #????????? | | # ###??????????????## < ##????????? | | # #???????????????## ##?????????? | | #???????????????# r@ #??????????? | | ###??????????????## ##??????????? | | #????????????????# d % ##???????????? | | ##????????######### #????????????? | | ?????????## #????????????? | | ?????????# """ *% ##???????????? | | ????????## """ = #???????????? | | ????????# "" % #???????????? | | ????????# ##???????????? | | ????????# #### #????????????? | | ??????????????# # ##????????????? | | ??????????????# ## #?????????????? | | ??????????????# ## #?????????????? | | ??????????????## ### #?????????????? | | ???????????????## # ###?# #?????????????? | | ????????????????######???# #?????????????? | | ?????????????????????????# #?????????????? | | ????????????????????????? #?????????????? | | ????????????????????????? #?????????????? | | ????????????????????????? ?????????????? | | ????????????????????????? ?????????????? | | ????????????????????????? ?????????????? | | ????????????????????????? ?????????????? | | ????????????????????????? ??????????????? | | ??????????????????????????????????????????? | +----------------------------------------------------+ Best States ------------- Heat Dissipation 48 Energy Generation 14 Energy Capacity 250 Matter Stores 300 Matter Capacity 300 Sight Range 16 Terrain Scan Density 10 Armor Coverage 150 Evasion (%) 55 Targeting Accuracy 10 Item Schematics ----------------- None Robot Schematics ------------------ None Fabricated ------------ Nothing Alien Tech Used ----------------- None Achievements -------------- None Challenges ------------ None Game ------ Seed MicroRestorationMachine Manual? 0 Play Time 00:12:30 Cumulative 702.0 hours Start 2024.03.10 @ 18:53:16 End 2024.03.10 @ 19:03:40 Sessions 1 Manual Loads 0 Difficulty Rogue Special Mode None Game No. 735 Rogue 460 Adventurer 123 Explorer 152 Win Type - Total 26 Types 20/0/4/1/0/0/0/1/0 Lore% 83 Gallery% 91 Achievement% 76 Wizard Run 0 Options --------- Layout 0 ASCII 1 Keyboard 1 Movement Numpad Keybinds 0 Fullscreen 2 Font 18/Terminus Map View 76x50 Zoom Use 11% Tactical HUD 1 Map Filters NONE Filters NONE Steam 1 RUN: 68bf8741-3308-4685-aac3-8434be145876